[Event "Titled Tuesday Blitz September 13 Early 2022"]
[White "Aloma Vidal, Robert"]
[Black "Belov, Vladimir"]
[WhiteFideId "2260409"]
[BlackFideId "4132394"]
[WhiteElo "2435"]
[BlackElo "2501"]
[Result "1/2-1/2"]
[Round "11"]
[TimeControl "180+1"]
[Date "2022.09.13"]
[WhiteClock "0:00:19"]
[BlackClock "0:00:22"]

1. e4 {[%clk 0:03:00]}  c5 {[%clk 0:02:58]} 2. c3 {[%clk 0:03:00]}  d5 {[%clk 0:02:58]} 3. exd5 {[%clk 0:03:01]}  Qxd5 {[%clk 0:02:59]} 4. Nf3 {[%clk 0:03:01]}  Nf6 {[%clk 0:02:59]} 5. d4 {[%clk 0:03:01]}  Bg4 {[%clk 0:03:00]} 6. Nbd2 {[%clk 0:02:58]}  Nc6 {[%clk 0:02:59]} 7. Bc4 {[%clk 0:02:56]}  Bxf3 {[%clk 0:03:00]} 8. Qb3 {[%clk 0:02:56]}  Na5 {[%clk 0:02:59]} 9. Qb5+ {[%clk 0:02:45]}  Qd7 {[%clk 0:02:54]} 10. Nxf3 {[%clk 0:02:43]}  Nxc4 {[%clk 0:02:52]} 11. Qxc4 {[%clk 0:02:43]}  cxd4 {[%clk 0:02:52]} 12. Nxd4 {[%clk 0:02:38]}  e6 {[%clk 0:02:45]} 13. O-O {[%clk 0:02:37]}  Be7 {[%clk 0:02:42]} 14. h3 {[%clk 0:02:30]}  O-O {[%clk 0:02:37]} 15. Bf4 {[%clk 0:02:31]}  Nd5 {[%clk 0:02:34]} 16. Bg3 {[%clk 0:02:30]}  a6 {[%clk 0:02:09]} 17. a4 {[%clk 0:02:27]}  Nb6 {[%clk 0:01:55]} 18. Qb3 {[%clk 0:02:27]}  Bc5 {[%clk 0:01:37]} 19. Rfd1 {[%clk 0:02:24]}  Qe7 {[%clk 0:01:37]} 20. a5 {[%clk 0:02:15]}  Nd5 {[%clk 0:01:37]} 21. Rd3 {[%clk 0:01:52]}  Rfd8 {[%clk 0:01:26]} 22. Re1 {[%clk 0:01:50]}  Bxd4 {[%clk 0:01:21]} 23. Rxd4 {[%clk 0:01:50]}  Nf6 {[%clk 0:01:06]} 24. Be5 {[%clk 0:01:50]}  Rxd4 {[%clk 0:00:48]} 25. Bxd4 {[%clk 0:01:50]}  Rd8 {[%clk 0:00:42]} 26. Bxf6 {[%clk 0:01:32]}  gxf6 {[%clk 0:00:42]} 27. g3 {[%clk 0:01:30]}  f5 {[%clk 0:00:38]} 28. Qc4 {[%clk 0:01:25]}  Rd2 {[%clk 0:00:35]} 29. b4 {[%clk 0:01:24]}  Qd7 {[%clk 0:00:34]} 30. Qf4 {[%clk 0:01:20]}  Qd5 {[%clk 0:00:25]} 31. Qg5+ {[%clk 0:01:10]}  Kf8 {[%clk 0:00:25]} 32. Qh6+ {[%clk 0:01:07]}  Kg8 {[%clk 0:00:26]} 33. h4 {[%clk 0:00:50]}  Rd1 {[%clk 0:00:26]} 34. Qg5+ {[%clk 0:00:44]}  Kf8 {[%clk 0:00:26]} 35. Rxd1 {[%clk 0:00:43]}  Qxd1+ {[%clk 0:00:25]} 36. Kg2 {[%clk 0:00:38]}  Qd5+ {[%clk 0:00:25]} 37. Kh2 {[%clk 0:00:38]}  Qf3 {[%clk 0:00:23]} 38. Kg1 {[%clk 0:00:35]}  Qd1+ {[%clk 0:00:22]} 39. Kg2 {[%clk 0:00:34]}  Qd5+ {[%clk 0:00:23]} 40. f3 {[%clk 0:00:32]}  Qd3 {[%clk 0:00:19]} 41. Qf6 {[%clk 0:00:20]}  Qe2+ {[%clk 0:00:19]} 42. Kg1 {[%clk 0:00:18]}  Qxf3 {[%clk 0:00:19]} 43. Qd8+ {[%clk 0:00:17]}  Kg7 {[%clk 0:00:20]} 44. Qg5+ {[%clk 0:00:17]}  Kf8 {[%clk 0:00:21]} 45. Qd8+ {[%clk 0:00:18]}  Kg7 {[%clk 0:00:21]} 46. Qg5+ {[%clk 0:00:19]}  Kf8 {[%clk 0:00:22]} 47. Qd8+ {[%clk 0:00:19]} 1/2-1/2


[Site "https://www.chess.com"]

[Event "Titled Tuesday Blitz September 13 Early 2022"]
[White "Atakhan, Abtin"]
[Black "Dushyant Sharma"]
[WhiteFideId "22502203"]
[BlackFideId "25065130"]
[WhiteElo "2087"]
[BlackElo "2144"]
[Result "1-0"]
[Round "11"]
[TimeControl "180+1"]
[Date "2022.09.13"]
[WhiteClock "0:01:50"]
[BlackClock "0:00:17"]

1. Nf3 {[%clk 0:03:00]}  d5 {[%clk 0:03:00]} 2. g3 {[%clk 0:03:01]}  e6 {[%clk 0:03:00]} 3. Bg2 {[%clk 0:03:01]}  Nf6 {[%clk 0:03:00]} 4. O-O {[%clk 0:03:02]}  Be7 {[%clk 0:03:01]} 5. c4 {[%clk 0:03:03]}  O-O {[%clk 0:03:01]} 6. b3 {[%clk 0:03:04]}  c5 {[%clk 0:03:01]} 7. Bb2 {[%clk 0:03:03]}  d4 {[%clk 0:03:01]} 8. e3 {[%clk 0:03:03]}  Nc6 {[%clk 0:03:01]} 9. exd4 {[%clk 0:03:04]}  cxd4 {[%clk 0:03:02]} 10. Re1 {[%clk 0:03:05]}  Bc5 {[%clk 0:02:57]} 11. d3 {[%clk 0:03:03]}  Re8 {[%clk 0:02:56]} 12. a3 {[%clk 0:03:03]}  a5 {[%clk 0:02:55]} 13. Ne5 {[%clk 0:03:03]}  Nxe5 {[%clk 0:02:54]} 14. Rxe5 {[%clk 0:03:04]}  Bd6 {[%clk 0:02:51]} 15. Bxd4 {[%clk 0:03:04]}  Bxe5 {[%clk 0:02:18]} 16. Bxe5 {[%clk 0:03:05]}  Bd7 {[%clk 0:02:14]} 17. Bxb7 {[%clk 0:03:02]}  Ra7 {[%clk 0:02:03]} 18. Bg2 {[%clk 0:03:02]}  Ra6 {[%clk 0:01:48]} 19. Nc3 {[%clk 0:02:53]}  Bc6 {[%clk 0:01:48]} 20. Bxc6 {[%clk 0:02:50]}  Rxc6 {[%clk 0:01:49]} 21. Qf3 {[%clk 0:02:50]}  Rb6 {[%clk 0:01:44]} 22. Nb5 {[%clk 0:02:45]}  Qd7 {[%clk 0:01:14]} 23. d4 {[%clk 0:02:28]}  a4 {[%clk 0:01:03]} 24. bxa4 {[%clk 0:02:25]}  Rc8 {[%clk 0:01:03]} 25. c5 {[%clk 0:02:24]}  Ra6 {[%clk 0:01:04]} 26. Bxf6 {[%clk 0:02:24]}  gxf6 {[%clk 0:01:04]} 27. Qxf6 {[%clk 0:02:22]}  Rxa4 {[%clk 0:01:04]} 28. Nd6 {[%clk 0:02:21]}  Rca8 {[%clk 0:00:59]} 29. Re1 {[%clk 0:02:18]}  Rxa3 {[%clk 0:00:57]} 30. d5 {[%clk 0:02:17]}  Rf8 {[%clk 0:00:34]} 31. Re5 {[%clk 0:02:11]}  h6 {[%clk 0:00:25]} 32. Qxh6 {[%clk 0:02:09]}  f6 {[%clk 0:00:26]} 33. Rh5 {[%clk 0:02:06]}  Qg7 {[%clk 0:00:22]} 34. Qxg7+ {[%clk 0:02:04]}  Kxg7 {[%clk 0:00:23]} 35. dxe6 {[%clk 0:02:05]}  Ra1+ {[%clk 0:00:20]} 36. Kg2 {[%clk 0:02:05]}  Re1 {[%clk 0:00:21]} 37. e7 {[%clk 0:01:56]}  Ra8 {[%clk 0:00:19]} 38. e8=Q {[%clk 0:01:50]}  Raxe8 {[%clk 0:00:19]} 39. Nxe8+ {[%clk 0:01:51]}  Rxe8 {[%clk 0:00:20]} 40. c6 {[%clk 0:01:51]}  Rc8 {[%clk 0:00:16]} 41. Rc5 {[%clk 0:01:51]}  Rc7 {[%clk 0:00:16]} 42. Kf3 {[%clk 0:01:51]}  Kg6 {[%clk 0:00:17]} 43. Kf4 {[%clk 0:01:51]}  Rxc6 {[%clk 0:00:17]} 44. Rxc6 {[%clk 0:01:50]} 1-0


[Site "https://www.chess.com"]

[Event "Titled Tuesday Blitz September 13 Early 2022"]
[White "Bayo Milagro, Alvaro"]
[Black "Timmermans, Mark"]
[WhiteFideId "22275240"]
[BlackFideId "1026399"]
[WhiteElo "2270"]
[BlackElo "2460"]
[Result "0-1"]
[Round "11"]
[TimeControl "180+1"]
[Date "2022.09.13"]
[WhiteClock "0:01:02"]
[BlackClock "0:02:34"]

1. e4 {[%clk 0:03:00]}  e5 {[%clk 0:02:54]} 2. Nf3 {[%clk 0:03:01]}  Nc6 {[%clk 0:02:54]} 3. Bb5 {[%clk 0:03:01]}  f5 {[%clk 0:02:54]} 4. Nc3 {[%clk 0:03:00]}  fxe4 {[%clk 0:02:54]} 5. Nxe4 {[%clk 0:03:00]}  d5 {[%clk 0:02:55]} 6. Nxe5 {[%clk 0:02:51]}  dxe4 {[%clk 0:02:56]} 7. Qh5+ {[%clk 0:01:56]}  g6 {[%clk 0:02:55]} 8. Nxg6 {[%clk 0:01:53]}  hxg6 {[%clk 0:02:55]} 9. Qxh8 {[%clk 0:01:48]}  Qf6 {[%clk 0:02:55]} 10. Qxg8 {[%clk 0:01:41]}  Be6 {[%clk 0:02:51]} 11. Qh7 {[%clk 0:01:40]}  O-O-O {[%clk 0:02:49]} 12. Bxc6 {[%clk 0:01:36]}  bxc6 {[%clk 0:02:47]} 13. O-O {[%clk 0:01:22]}  Rd7 {[%clk 0:02:47]} 14. Qxd7+ {[%clk 0:01:19]}  Bxd7 {[%clk 0:02:44]} 15. d3 {[%clk 0:01:18]}  exd3 {[%clk 0:02:40]} 16. cxd3 {[%clk 0:01:19]}  Bd6 {[%clk 0:02:40]} 17. Be3 {[%clk 0:01:17]}  Qh8 {[%clk 0:02:34]} 18. g3 {[%clk 0:01:05]}  Bh3 {[%clk 0:02:34]} 19. Rfe1 {[%clk 0:01:02]}  Qh5 {[%clk 0:02:34]} 0-1


[Site "https://www.chess.com"]

[Event "Titled Tuesday Blitz September 13 Early 2022"]
[White "Brodowski, Piotr"]
[Black "Harvey, Marcus R"]
[WhiteFideId "1124480"]
[BlackFideId "400092"]
[WhiteElo "2312"]
[BlackElo "2485"]
[Result "0-1"]
[Round "11"]
[TimeControl "180+1"]
[Date "2022.09.13"]
[WhiteClock "0:00:03"]
[BlackClock "0:00:34"]

1. c4 {[%clk 0:03:00]}  c5 {[%clk 0:02:37]} 2. Nc3 {[%clk 0:02:59]}  Nc6 {[%clk 0:02:37]} 3. g3 {[%clk 0:02:59]}  g6 {[%clk 0:02:37]} 4. Bg2 {[%clk 0:02:59]}  Bg7 {[%clk 0:02:38]} 5. Nf3 {[%clk 0:02:59]}  d6 {[%clk 0:02:38]} 6. O-O {[%clk 0:02:58]}  e6 {[%clk 0:02:39]} 7. e3 {[%clk 0:02:52]}  Nge7 {[%clk 0:02:38]} 8. d4 {[%clk 0:02:52]}  O-O {[%clk 0:02:39]} 9. d5 {[%clk 0:02:46]}  Na5 {[%clk 0:02:39]} 10. Nd2 {[%clk 0:02:39]}  exd5 {[%clk 0:02:39]} 11. cxd5 {[%clk 0:02:39]}  Bd7 {[%clk 0:02:37]} 12. Rb1 {[%clk 0:02:13]}  b5 {[%clk 0:02:36]} 13. a3 {[%clk 0:02:05]}  Rb8 {[%clk 0:02:29]} 14. Nce4 {[%clk 0:02:03]}  Nb7 {[%clk 0:02:17]} 15. Nf3 {[%clk 0:01:39]}  c4 {[%clk 0:02:11]} 16. b4 {[%clk 0:01:34]}  cxb3 {[%clk 0:02:04]} 17. Qxb3 {[%clk 0:01:32]}  f5 {[%clk 0:02:04]} 18. Neg5 {[%clk 0:01:29]}  Nc5 {[%clk 0:02:04]} 19. Qa2 {[%clk 0:01:29]}  h6 {[%clk 0:02:02]} 20. Ne6 {[%clk 0:01:29]}  Bxe6 {[%clk 0:01:58]} 21. dxe6 {[%clk 0:01:30]}  d5 {[%clk 0:01:54]} 22. Nd4 {[%clk 0:01:08]}  a6 {[%clk 0:01:47]} 23. Bb2 {[%clk 0:01:08]}  Qd6 {[%clk 0:01:47]} 24. Rfd1 {[%clk 0:01:08]}  Rfd8 {[%clk 0:01:46]} 25. Rbc1 {[%clk 0:01:07]}  Kh7 {[%clk 0:01:43]} 26. h4 {[%clk 0:01:05]}  Nxe6 {[%clk 0:01:38]} 27. h5 {[%clk 0:01:02]}  gxh5 {[%clk 0:01:30]} 28. Nxe6 {[%clk 0:01:01]}  Qxe6 {[%clk 0:01:29]} 29. Bxg7 {[%clk 0:01:01]}  Kxg7 {[%clk 0:01:29]} 30. Rc7 {[%clk 0:01:02]}  Rbc8 {[%clk 0:01:15]} 31. Ra7 {[%clk 0:00:36]}  Qf6 {[%clk 0:01:05]} 32. Rd4 {[%clk 0:00:26]}  Kh8 {[%clk 0:01:02]} 33. Qd2 {[%clk 0:00:17]}  Rd6 {[%clk 0:00:51]} 34. Bxd5 {[%clk 0:00:16]}  Rcd8 {[%clk 0:00:48]} 35. Bf3 {[%clk 0:00:13]}  Rxd4 {[%clk 0:00:48]} 36. exd4 {[%clk 0:00:13]}  f4 {[%clk 0:00:41]} 37. Qe2 {[%clk 0:00:11]}  Nf5 {[%clk 0:00:33]} 38. Qe4 {[%clk 0:00:03]}  fxg3 {[%clk 0:00:33]} 39. fxg3 {[%clk 0:00:04]}  Qxd4+ {[%clk 0:00:33]} 40. Qxd4+ {[%clk 0:00:04]}  Nxd4 {[%clk 0:00:33]} 41. Bxh5 {[%clk 0:00:04]}  Rd6 {[%clk 0:00:33]} 42. Kg2 {[%clk 0:00:04]}  Nc2 {[%clk 0:00:33]} 43. a4 {[%clk 0:00:03]}  bxa4 {[%clk 0:00:33]} 44. Bd1 {[%clk 0:00:03]}  Ne3+ {[%clk 0:00:33]} 45. Kh3 {[%clk 0:00:03]}  Nxd1 {[%clk 0:00:34]} 0-1


[Site "https://www.chess.com"]

[Event "Titled Tuesday Blitz September 13 Early 2022"]
[White "Cardoso Cardoso, Jose Gabriel"]
[Black "Gabdrakhmanov, Azat"]
[WhiteFideId "4430492"]
[BlackFideId "34189197"]
[WhiteElo "2485"]
[BlackElo "2233"]
[Result "0-1"]
[Round "11"]
[TimeControl "180+1"]
[Date "2022.09.13"]
[WhiteClock "0:00:02"]
[BlackClock "0:00:14"]

1. e4 {[%clk 0:02:48]}  c5 {[%clk 0:02:59]} 2. b4 {[%clk 0:02:46]}  b6 {[%clk 0:02:53]} 3. g3 {[%clk 0:02:33]}  Bb7 {[%clk 0:02:52]} 4. Bg2 {[%clk 0:02:33]}  e6 {[%clk 0:02:52]} 5. Ne2 {[%clk 0:02:31]}  Nf6 {[%clk 0:02:50]} 6. d3 {[%clk 0:02:30]}  d5 {[%clk 0:02:48]} 7. bxc5 {[%clk 0:02:25]}  bxc5 {[%clk 0:02:31]} 8. Nbc3 {[%clk 0:02:23]}  d4 {[%clk 0:02:22]} 9. Nb1 {[%clk 0:02:20]}  Nc6 {[%clk 0:02:20]} 10. Nd2 {[%clk 0:02:19]}  Be7 {[%clk 0:02:18]} 11. O-O {[%clk 0:02:10]}  Nd7 {[%clk 0:02:18]} 12. Nc4 {[%clk 0:02:09]}  Qc7 {[%clk 0:02:14]} 13. Rb1 {[%clk 0:02:07]}  Ba6 {[%clk 0:02:13]} 14. Nd2 {[%clk 0:01:59]}  O-O {[%clk 0:02:12]} 15. Nb3 {[%clk 0:01:56]}  c4 {[%clk 0:01:55]} 16. Nbxd4 {[%clk 0:01:54]}  Nxd4 {[%clk 0:01:50]} 17. Nxd4 {[%clk 0:01:55]}  Rad8 {[%clk 0:01:48]} 18. Be3 {[%clk 0:01:53]}  Ne5 {[%clk 0:01:32]} 19. f4 {[%clk 0:01:48]}  Bc5 {[%clk 0:00:46]} 20. fxe5 {[%clk 0:01:36]}  Bxd4 {[%clk 0:00:46]} 21. Bxd4 {[%clk 0:01:34]}  Rxd4 {[%clk 0:00:47]} 22. Qh5 {[%clk 0:01:04]}  cxd3 {[%clk 0:00:35]} 23. cxd3 {[%clk 0:01:04]}  Rxd3 {[%clk 0:00:34]} 24. Rbc1 {[%clk 0:01:01]}  Rc3 {[%clk 0:00:34]} 25. Rxc3 {[%clk 0:00:56]}  Qxc3 {[%clk 0:00:35]} 26. Rf2 {[%clk 0:00:55]}  Qe1+ {[%clk 0:00:29]} 27. Bf1 {[%clk 0:00:53]}  Bxf1 {[%clk 0:00:27]} 28. Rxf1 {[%clk 0:00:54]}  Qxe4 {[%clk 0:00:26]} 29. Rf2 {[%clk 0:00:54]}  g6 {[%clk 0:00:26]} 30. Qg5 {[%clk 0:00:44]}  Rb8 {[%clk 0:00:24]} 31. Rf1 {[%clk 0:00:32]}  Qd4+ {[%clk 0:00:20]} 32. Kg2 {[%clk 0:00:30]}  Rb2+ {[%clk 0:00:20]} 33. Kh3 {[%clk 0:00:30]}  Qd2 {[%clk 0:00:16]} 34. Qxd2 {[%clk 0:00:18]}  Rxd2 {[%clk 0:00:17]} 35. a3 {[%clk 0:00:10]}  Re2 {[%clk 0:00:16]} 36. Rb1 {[%clk 0:00:08]}  Rxe5 {[%clk 0:00:16]} 37. Kg4 {[%clk 0:00:08]}  Ra5 {[%clk 0:00:15]} 38. Rb3 {[%clk 0:00:08]}  Ra4+ {[%clk 0:00:16]} 39. Kf3 {[%clk 0:00:07]}  Kg7 {[%clk 0:00:16]} 40. h4 {[%clk 0:00:07]}  h6 {[%clk 0:00:16]} 41. Rc3 {[%clk 0:00:06]}  g5 {[%clk 0:00:16]} 42. h5 {[%clk 0:00:07]}  Kf6 {[%clk 0:00:16]} 43. Re3 {[%clk 0:00:06]}  Rd4 {[%clk 0:00:16]} 44. Rb3 {[%clk 0:00:06]}  a5 {[%clk 0:00:16]} 45. Rb5 {[%clk 0:00:04]}  Rd3+ {[%clk 0:00:14]} 46. Kg4 {[%clk 0:00:05]}  Rxa3 {[%clk 0:00:13]} 47. Rb2 {[%clk 0:00:06]}  Kg7 {[%clk 0:00:13]} 48. Rb7 {[%clk 0:00:05]}  Ra4+ {[%clk 0:00:14]} 49. Kh3 {[%clk 0:00:05]}  Ra1 {[%clk 0:00:13]} 50. Ra7 {[%clk 0:00:05]}  a4 {[%clk 0:00:12]} 51. Kg4 {[%clk 0:00:05]}  a3 {[%clk 0:00:12]} 52. Kh3 {[%clk 0:00:05]}  e5 {[%clk 0:00:12]} 53. Kg4 {[%clk 0:00:05]}  Kf6 {[%clk 0:00:13]} 54. Ra6+ {[%clk 0:00:05]}  Kg7 {[%clk 0:00:13]} 55. Ra7 {[%clk 0:00:05]}  a2 {[%clk 0:00:13]} 56. Ra6 {[%clk 0:00:02]}  e4 {[%clk 0:00:13]} 57. Ra7 {[%clk 0:00:02]}  e3 {[%clk 0:00:14]} 0-1


[Site "https://www.chess.com"]

[Event "Titled Tuesday Blitz September 13 Early 2022"]
[White "Csonka, Balazs"]
[Black "Pranav, V"]
[WhiteFideId "742910"]
[BlackFideId "25060783"]
[WhiteElo "2404"]
[BlackElo "2390"]
[Result "0-1"]
[Round "11"]
[TimeControl "180+1"]
[Date "2022.09.13"]
[WhiteClock "0:00:03"]
[BlackClock "0:00:09"]

1. d4 {[%clk 0:03:00]}  d5 {[%clk 0:02:59]} 2. Nf3 {[%clk 0:02:58]}  c6 {[%clk 0:03:00]} 3. c4 {[%clk 0:02:58]}  Nf6 {[%clk 0:03:00]} 4. Nc3 {[%clk 0:02:57]}  g6 {[%clk 0:03:01]} 5. cxd5 {[%clk 0:02:54]}  cxd5 {[%clk 0:03:02]} 6. Bf4 {[%clk 0:02:54]}  Bg7 {[%clk 0:03:01]} 7. e3 {[%clk 0:02:53]}  O-O {[%clk 0:03:01]} 8. h3 {[%clk 0:02:42]}  Nc6 {[%clk 0:03:00]} 9. Bd3 {[%clk 0:02:41]}  Bf5 {[%clk 0:02:54]} 10. Bxf5 {[%clk 0:02:31]}  gxf5 {[%clk 0:02:55]} 11. O-O {[%clk 0:02:31]}  e6 {[%clk 0:02:54]} 12. Rc1 {[%clk 0:02:28]}  Kh8 {[%clk 0:02:50]} 13. Qb3 {[%clk 0:02:21]}  Na5 {[%clk 0:02:47]} 14. Qb4 {[%clk 0:02:15]}  Rc8 {[%clk 0:02:13]} 15. Ne2 {[%clk 0:01:47]}  Qb6 {[%clk 0:01:54]} 16. Bd6 {[%clk 0:01:24]}  Rfe8 {[%clk 0:01:47]} 17. Ne5 {[%clk 0:01:18]}  Kg8 {[%clk 0:01:46]} 18. Qxb6 {[%clk 0:00:57]}  axb6 {[%clk 0:01:46]} 19. Rxc8 {[%clk 0:00:57]}  Rxc8 {[%clk 0:01:46]} 20. Rc1 {[%clk 0:00:57]}  Rxc1+ {[%clk 0:01:42]} 21. Nxc1 {[%clk 0:00:58]}  Ne8 {[%clk 0:01:39]} 22. Bb4 {[%clk 0:00:49]}  Bxe5 {[%clk 0:01:38]} 23. dxe5 {[%clk 0:00:50]}  Nc6 {[%clk 0:01:38]} 24. Bc3 {[%clk 0:00:50]}  Nc7 {[%clk 0:01:38]} 25. Ne2 {[%clk 0:00:31]}  Nb5 {[%clk 0:01:34]} 26. Bd4 {[%clk 0:00:29]}  Nbxd4 {[%clk 0:01:04]} 27. exd4 {[%clk 0:00:30]}  Nb4 {[%clk 0:01:05]} 28. Nc1 {[%clk 0:00:22]}  Nc2 {[%clk 0:00:57]} 29. Nb3 {[%clk 0:00:20]}  f6 {[%clk 0:00:52]} 30. exf6 {[%clk 0:00:19]}  Kf7 {[%clk 0:00:52]} 31. Kf1 {[%clk 0:00:19]}  Kxf6 {[%clk 0:00:53]} 32. Ke2 {[%clk 0:00:19]}  f4 {[%clk 0:00:53]} 33. a3 {[%clk 0:00:15]}  e5 {[%clk 0:00:47]} 34. Kd2 {[%clk 0:00:11]}  Nxd4 {[%clk 0:00:37]} 35. Nxd4 {[%clk 0:00:11]}  exd4 {[%clk 0:00:38]} 36. Kd3 {[%clk 0:00:10]}  Ke5 {[%clk 0:00:38]} 37. a4 {[%clk 0:00:10]}  b5 {[%clk 0:00:32]} 38. axb5 {[%clk 0:00:09]}  b6 {[%clk 0:00:33]} 39. b3 {[%clk 0:00:05]}  h6 {[%clk 0:00:33]} 40. h4 {[%clk 0:00:04]}  h5 {[%clk 0:00:32]} 41. b4 {[%clk 0:00:03]}  Kd6 {[%clk 0:00:29]} 42. Kxd4 {[%clk 0:00:03]}  Ke6 {[%clk 0:00:30]} 43. g3 {[%clk 0:00:02]}  fxg3 {[%clk 0:00:29]} 44. fxg3 {[%clk 0:00:03]}  Kd6 {[%clk 0:00:29]} 45. Kd3 {[%clk 0:00:03]}  Ke5 {[%clk 0:00:28]} 46. Ke3 {[%clk 0:00:03]}  d4+ {[%clk 0:00:28]} 47. Kd3 {[%clk 0:00:03]}  Kd5 {[%clk 0:00:28]} 48. Kd2 {[%clk 0:00:03]}  Ke4 {[%clk 0:00:28]} 49. Ke2 {[%clk 0:00:03]}  d3+ {[%clk 0:00:29]} 50. Kd2 {[%clk 0:00:04]}  Kf3 {[%clk 0:00:07]} 51. Kxd3 {[%clk 0:00:04]}  Kxg3 {[%clk 0:00:08]} 52. Ke4 {[%clk 0:00:04]}  Kxh4 {[%clk 0:00:09]} 53. Kd5 {[%clk 0:00:03]}  Kg5 {[%clk 0:00:08]} 54. Kc6 {[%clk 0:00:04]}  h4 {[%clk 0:00:08]} 55. Kxb6 {[%clk 0:00:05]}  h3 {[%clk 0:00:09]} 56. Ka7 {[%clk 0:00:04]}  h2 {[%clk 0:00:10]} 57. b6 {[%clk 0:00:04]}  h1=Q {[%clk 0:00:11]} 58. b7 {[%clk 0:00:04]}  Qa1+ {[%clk 0:00:11]} 59. Kb6 {[%clk 0:00:04]}  Qe5 {[%clk 0:00:10]} 60. Ka7 {[%clk 0:00:03]}  Qc7 {[%clk 0:00:10]} 61. Ka8 {[%clk 0:00:03]}  Qc6 {[%clk 0:00:10]} 62. Kb8 {[%clk 0:00:02]}  Kf6 {[%clk 0:00:09]} 63. b5 {[%clk 0:00:01]}  Qxb5 {[%clk 0:00:09]} 64. Kc7 {[%clk 0:00:02]}  Qc5+ {[%clk 0:00:09]} 65. Kb8 {[%clk 0:00:02]}  Ke6 {[%clk 0:00:08]} 66. Ka8 {[%clk 0:00:02]}  Qa5+ {[%clk 0:00:08]} 67. Kb8 {[%clk 0:00:03]}  Kd6 {[%clk 0:00:09]} 0-1


[Site "https://www.chess.com"]

[Event "Titled Tuesday Blitz September 13 Early 2022"]
[White "Jakubowski, Krzysztof"]
[Black "Fernandez Guillen, Ernesto J."]
[WhiteFideId "1112848"]
[BlackFideId "3512428"]
[WhiteElo "2306"]
[BlackElo "2422"]
[Result "1/2-1/2"]
[Round "11"]
[TimeControl "180+1"]
[Date "2022.09.13"]
[WhiteClock "0:00:05"]
[BlackClock "0:00:07"]

1. e4 {[%clk 0:03:00]}  e5 {[%clk 0:02:59]} 2. Nc3 {[%clk 0:02:59]}  Nc6 {[%clk 0:02:59]} 3. Bc4 {[%clk 0:02:57]}  g6 {[%clk 0:02:50]} 4. d3 {[%clk 0:02:55]}  Bg7 {[%clk 0:02:46]} 5. h4 {[%clk 0:02:50]}  h6 {[%clk 0:02:45]} 6. Nge2 {[%clk 0:02:47]}  Na5 {[%clk 0:02:30]} 7. Be3 {[%clk 0:02:44]}  Nxc4 {[%clk 0:02:30]} 8. dxc4 {[%clk 0:02:45]}  d6 {[%clk 0:02:29]} 9. Qd2 {[%clk 0:02:42]}  Be6 {[%clk 0:02:29]} 10. b3 {[%clk 0:02:42]}  f5 {[%clk 0:02:27]} 11. f4 {[%clk 0:02:32]}  Nf6 {[%clk 0:02:17]} 12. exf5 {[%clk 0:02:14]}  gxf5 {[%clk 0:02:15]} 13. O-O-O {[%clk 0:02:12]}  O-O {[%clk 0:02:13]} 14. fxe5 {[%clk 0:02:06]}  dxe5 {[%clk 0:02:14]} 15. Bxh6 {[%clk 0:02:06]}  Qxd2+ {[%clk 0:02:13]} 16. Bxd2 {[%clk 0:02:05]}  c6 {[%clk 0:02:13]} 17. h5 {[%clk 0:01:54]}  Ng4 {[%clk 0:02:10]} 18. Rdf1 {[%clk 0:01:50]}  Kh7 {[%clk 0:02:08]} 19. Ng1 {[%clk 0:01:47]}  f4 {[%clk 0:01:56]} 20. Nf3 {[%clk 0:01:36]}  Bf5 {[%clk 0:01:50]} 21. Ng5+ {[%clk 0:01:22]}  Kh8 {[%clk 0:01:46]} 22. Nge4 {[%clk 0:01:05]}  Rad8 {[%clk 0:01:44]} 23. c5 {[%clk 0:01:04]}  Rd4 {[%clk 0:01:37]} 24. Nd6 {[%clk 0:01:03]}  Bh7 {[%clk 0:01:36]} 25. Nxb7 {[%clk 0:00:58]}  Bh6 {[%clk 0:01:31]} 26. Nb1 {[%clk 0:00:47]}  Rxd2 {[%clk 0:01:25]} 27. Nxd2 {[%clk 0:00:47]}  e4 {[%clk 0:01:26]} 28. Kb1 {[%clk 0:00:34]}  e3 {[%clk 0:01:16]} 29. Nf3 {[%clk 0:00:32]}  Rg8 {[%clk 0:01:06]} 30. Nd6 {[%clk 0:00:29]}  Nf2 {[%clk 0:01:00]} 31. Nf7+ {[%clk 0:00:23]}  Kg7 {[%clk 0:00:59]} 32. Nxh6 {[%clk 0:00:24]}  Kxh6 {[%clk 0:01:00]} 33. Rh4 {[%clk 0:00:24]}  Rxg2 {[%clk 0:00:48]} 34. Rxf4 {[%clk 0:00:20]}  Ne4 {[%clk 0:00:38]} 35. Ka1 {[%clk 0:00:17]}  Rxc2 {[%clk 0:00:29]} 36. Nd4 {[%clk 0:00:17]}  Rd2 {[%clk 0:00:30]} 37. Nf3 {[%clk 0:00:12]}  Rg2 {[%clk 0:00:13]} 38. Ne1 {[%clk 0:00:11]}  Re2 {[%clk 0:00:13]} 39. Nd3 {[%clk 0:00:09]}  Nc3 {[%clk 0:00:12]} 40. Nc1 {[%clk 0:00:09]}  Rc2 {[%clk 0:00:11]} 41. Rc4 {[%clk 0:00:08]}  e2 {[%clk 0:00:10]} 42. Re1 {[%clk 0:00:09]}  Kxh5 {[%clk 0:00:10]} 43. Rxc3 {[%clk 0:00:09]}  Rxc3 {[%clk 0:00:10]} 44. Nxe2 {[%clk 0:00:09]}  Rxc5 {[%clk 0:00:10]} 45. Nd4 {[%clk 0:00:08]}  Kg6 {[%clk 0:00:07]} 46. Kb2 {[%clk 0:00:08]}  Bg8 {[%clk 0:00:06]} 47. Re8 {[%clk 0:00:07]}  Bd5 {[%clk 0:00:06]} 48. Re7 {[%clk 0:00:07]}  a5 {[%clk 0:00:06]} 49. Ra7 {[%clk 0:00:05]}  Kf6 {[%clk 0:00:06]} 50. Nc2 {[%clk 0:00:04]}  Ke5 {[%clk 0:00:05]} 51. Ne3 {[%clk 0:00:04]}  Be6 {[%clk 0:00:06]} 52. Nc4+ {[%clk 0:00:03]}  Bxc4 {[%clk 0:00:05]} 53. bxc4 {[%clk 0:00:04]}  Kd4 {[%clk 0:00:05]} 54. Kb3 {[%clk 0:00:03]}  Rxc4 {[%clk 0:00:06]} 55. Rxa5 {[%clk 0:00:03]}  Rc1 {[%clk 0:00:06]} 56. Kb2 {[%clk 0:00:03]}  Rh1 {[%clk 0:00:05]} 57. Ra4+ {[%clk 0:00:04]}  Kd3 {[%clk 0:00:05]} 58. Ra3+ {[%clk 0:00:04]}  Kd4 {[%clk 0:00:05]} 59. Ra4+ {[%clk 0:00:04]}  Kd5 {[%clk 0:00:06]} 60. Rg4 {[%clk 0:00:04]}  c5 {[%clk 0:00:06]} 61. Rg5+ {[%clk 0:00:04]}  Kc4 {[%clk 0:00:06]} 62. Rg4+ {[%clk 0:00:04]}  Kb5 {[%clk 0:00:07]} 63. Rg8 {[%clk 0:00:04]}  Rh2+ {[%clk 0:00:07]} 64. Kb3 {[%clk 0:00:03]}  Rh3+ {[%clk 0:00:08]} 65. Kb2 {[%clk 0:00:03]}  Kb4 {[%clk 0:00:08]} 66. Rb8+ {[%clk 0:00:03]}  Kc4 {[%clk 0:00:09]} 67. Rg8 {[%clk 0:00:03]}  Rh2+ {[%clk 0:00:09]} 68. Kb1 {[%clk 0:00:04]}  Kc3 {[%clk 0:00:09]} 69. Rg3+ {[%clk 0:00:03]}  Kb4 {[%clk 0:00:10]} 70. Rb3+ {[%clk 0:00:03]}  Kc4 {[%clk 0:00:10]} 71. Rg3 {[%clk 0:00:04]}  Kb4 {[%clk 0:00:10]} 72. Rb3+ {[%clk 0:00:04]}  Kc4 {[%clk 0:00:10]} 73. Rg3 {[%clk 0:00:05]}  Kd4 {[%clk 0:00:11]} 74. Rg4+ {[%clk 0:00:05]}  Kd5 {[%clk 0:00:09]} 75. Rg5+ {[%clk 0:00:06]}  Kc6 {[%clk 0:00:09]} 76. Rg8 {[%clk 0:00:06]}  Re2 {[%clk 0:00:08]} 77. Rg4 {[%clk 0:00:06]}  Kb5 {[%clk 0:00:09]} 78. Rh4 {[%clk 0:00:06]}  c4 {[%clk 0:00:09]} 79. Rh8 {[%clk 0:00:05]}  Kb4 {[%clk 0:00:10]} 80. Rh3 {[%clk 0:00:05]}  c3 {[%clk 0:00:09]} 81. Rh8 {[%clk 0:00:03]}  Re1+ {[%clk 0:00:07]} 82. Kc2 {[%clk 0:00:03]}  Re2+ {[%clk 0:00:07]} 83. Kb1 {[%clk 0:00:03]}  Kc4 {[%clk 0:00:07]} 84. Rc8+ {[%clk 0:00:02]}  Kd4 {[%clk 0:00:07]} 85. Rd8+ {[%clk 0:00:02]}  Kc4 {[%clk 0:00:07]} 86. Rc8+ {[%clk 0:00:03]}  Kb4 {[%clk 0:00:08]} 87. Rb8+ {[%clk 0:00:03]}  Ka4 {[%clk 0:00:08]} 88. Ra8+ {[%clk 0:00:04]}  Kb4 {[%clk 0:00:09]} 89. Rb8+ {[%clk 0:00:05]}  Kc5 {[%clk 0:00:09]} 90. Rc8+ {[%clk 0:00:05]}  Kd4 {[%clk 0:00:10]} 91. Rd8+ {[%clk 0:00:05]}  Kc4 {[%clk 0:00:07]} 92. Rc8+ {[%clk 0:00:05]} 1/2-1/2


[Site "https://www.chess.com"]